bitfinex-derivatives/quotes_SOLF0:USTF0_20250101
["timestamp","ask_amount","ask_price","bid_price","bid_amount"]
[1735694624075,2.6209,191.13,191.07,8.42737345]
[1735694624277,8.42737345,191.1,191.02,8.42737345]
[1735694624482,3.06,191.09,191.02,8.42737345]
[1735694624782,11.04907345,191.08,191.02,11.04967345]
[1735694624978,11.04907345,191.08,191.02,2.6223]
[1735694625382,11.04907345,191.08,191.02,11.04967345]
[1735694626389,11.04907345,191.08,191.02,2.6223]
[1735694626584,8.42737345,191.06,190.98,3.0628]
[1735694626989,8.42737345,191.06,190.98,11.49017345]
[1735694628087,3.06,191.09,190.98,3.0628]
[1735694628293,11.04927345,191.06,190.99,8.42737345]
[1735694629090,11.04927345,191.06,190.98,3.0628]
[1735694629293,11.04927345,191.06,190.98,11.49017345]
[1735694629587,11.04927345,191.06,191.01,2.6226]
[1735694631390,11.04927345,191.06,191.0,2.6227]
[1735694632088,8.42737345,191.04,190.98,2.6229]
[1735694632290,3.06,191.03,190.98,2.6229]
[1735694632894,3.06,191.03,190.99,2.6228]
[1735694634490,2.6226,191.02,190.97,11.05037345]
[1735694634692,11.04997345,191.02,190.97,11.05037345]
[1735694634890,8.42737345,191.02,190.93,1.5486]
[1735694635092,8.42737345,190.95,190.88,10.2611268]
[1735694635293,8.42737345,190.93,190.88,10.2611268]
[1735694635496,3.06,190.92,190.88,10.2611268]
[1735694635798,8.42737345,190.93,190.88,1.83375335]
[1735694635988,3.06,190.92,190.88,1.83375335]
[1735694636186,8.42737345,190.91,190.83,8.42737345]
[1735694636391,2.6244,190.88,190.83,8.42737345]
[1735694636591,2.6244,190.88,190.81,5.8295]
[1735694636592,3.06,190.87,190.81,14.25687345]
[1735694636792,11.48737345,190.87,190.81,8.42737345]
[1735694637087,2.6248,190.85,190.81,8.42737345]
[1735694637291,3.06,190.87,190.83,8.42737345]
[1735694637494,3.06,190.87,190.84,2.6249]
[1735694638000,3.06,190.87,190.85,8.42737345]
[1735694638197,3.06,190.91,190.85,8.42737345]
[1735694639392,3.06,190.91,190.86,2.6247]
[1735694640096,8.42737345,190.9,190.86,2.6247]
[1735694640398,8.42737345,190.9,190.83,8.42737345]
[1735694640399,8.42737345,190.9,190.85,2.6248]
[1735694640595,8.42737345,190.88,190.83,8.42737345]
[1735694640800,8.42737345,190.88,190.82,2.6252]
[1735694640993,8.42737345,190.88,190.81,8.42737345]
[1735694641403,8.42737345,190.86,190.76,3.2389]
[1735694641602,8.42737345,190.84,190.78,8.42737345]
[1735694642002,8.42737345,190.84,190.8,2.6255]
[1735694642801,11.48737345,190.86,190.8,8.42737345]
[1735694643202,11.48737345,190.86,190.82,2.6252]
[1735694644103,14.11207345,190.86,190.82,2.6252]
[1735694644305,14.11207345,190.86,190.8,2.6254]
[1735694644500,14.11207345,190.86,190.78,8.42737345]
[1735694644700,11.48737345,190.86,190.8,8.42737345]
[1735694645405,14.11207345,190.86,190.8,8.42737345]
[1735694645605,3.06,190.85,190.78,8.42737345]
[1735694645810,11.05237345,190.84,190.76,3.2389]
[1735694645997,11.05237345,190.84,190.76,11.66627345]
[1735694646197,3.06,190.85,190.76,1.6019]
[1735694646198,8.42737345,190.82,190.76,1.6019]
[1735694647401,11.05267345,190.82,190.78,2.6258]
[1735694647605,8.42737345,190.82,190.76,1.6019]
[1735694649403,11.05267345,190.82,190.78,2.6257]
[1735694649904,8.42737345,190.82,190.76,10.02927345]
[1735694650107,8.42737345,190.82,190.79,2.6257]
[1735694651009,3.06,190.87,190.83,2.6251]
[1735694651208,11.48737345,190.87,190.83,2.6251]
[1735694651404,2.7461,190.93,190.84,8.42737345]
[1735694651608,11.48737345,190.92,190.89,2.6242]
[1735694652010,11.48737345,190.92,190.86,8.42737345]
[1735694652207,8.42737345,190.92,190.86,8.42737345]
[1735694652405,3.06,190.94,190.88,8.42737345]
[1735694652912,3.06,190.94,190.89,2.6242]
[1735694653112,3.06,190.94,190.88,8.42737345]
[1735694653313,8.42737345,190.93,190.86,8.42737345]
[1735694653515,8.42737345,190.93,190.86,11.54137345]
[1735694654213,3.06,190.94,190.86,3.114]
[1735694654415,3.06,190.94,190.9,2.6241]
[1735694655610,13.20272556,190.96,190.86,3.114]
[1735694655803,3.06,190.98,190.87,13.20272556]
[1735694656009,16.26272556,190.99,190.87,13.20272556]
[1735694656409,16.26272556,190.99,190.94,2.6235]
[1735694658107,2.6233,190.97,190.91,2.624]
[1735694658318,16.26272556,190.99,190.87,13.20272556]
[1735694658917,2.6231,190.98,190.93,2.6236]
[1735694659414,3.06,190.98,190.94,2.6236]
[1735694660615,3.06,190.98,190.95,2.6234]
[1735694661114,3.06,190.98,190.94,2.6236]
[1735694662011,3.06,190.98,190.87,13.20272556]
[1735694663315,5.6831,190.98,190.92,2.6237]
[1735694663912,2.6233,190.97,190.92,2.6237]
[1735694665222,3.06,190.98,190.87,1.6364]
[1735694665423,70.3,191.06,190.89,13.20272556]
[1735694665424,13.20272556,191.02,190.89,13.20272556]
[1735694665719,3.06,191.01,190.9,1.5704]
[1735694666117,13.20272556,191.02,190.9,1.5704]
[1735694666415,3.06,191.01,190.92,13.20272556]
[1735694666612,3.06,191.03,190.92,13.20272556]
[1735694666813,5.6825,191.03,190.98,2.623]
[1735694667114,3.06,191.06,190.95,16.26272556]
[1735694667314,3.06,191.06,190.96,3.0347]
[1735694667622,5.682,191.06,191.02,2.6225]
[1735694668417,5.682,191.06,191.01,2.6226]
[1735694669222,3.06,191.06,191.03,2.6223]
[1735694669420,3.06,191.09,190.98,13.20272556]
[1735694669616,3.06,191.09,190.99,1.4999]
[1735694670023,2.6216,191.1,191.01,13.20272556]
[1735694671728,3.06,191.11,191.01,13.20272556]
[1735694672020,13.20272556,191.15,191.04,13.20272556]
[1735694672227,16.26272556,191.15,191.08,2.6217]
[1735694672429,2.621,191.13,191.08,2.6217]
[1735694672823,2.621,191.13,191.07,2.6218]
[1735694673125,2.621,191.13,191.05,3.1247]
[1735694673730,2.621,191.13,191.08,2.6216]
[1735694675029,2.6209,191.14,191.05,3.1247]
[1735694675227,3.06,191.15,191.05,3.1247]
[1735694675624,2.6213,191.11,191.07,2.6218]
[1735694675823,16.26272556,191.15,191.05,3.1247]
[1735694676422,2.6211,191.12,191.06,2.6218]
[1735694676618,2.6211,191.12,191.05,3.1247]
[1735694676924,2.621,191.13,191.05,3.1247]
[1735694677228,3.06,191.15,191.05,3.1247]
[1735694677627,3.06,191.15,191.05,6.1847]
[1735694677825,2.6207,191.16,191.05,6.1847]
[1735694678025,5.6807,191.16,191.05,6.1847]
[1735694678331,5.6807,191.16,191.1,2.6213]
[1735694678828,3.06,191.16,191.1,2.6213]
[1735694679027,2.6207,191.15,191.1,2.6213]
[1735694680635,2.6207,191.15,191.05,6.1847]
[1735694680636,3.06,191.16,191.13,2.621]
[1735694681035,2.6205,191.17,191.13,2.621]
[1735694682526,18.88312556,191.18,191.08,1.5215]
[1735694683027,2.6206,191.16,191.11,2.6213]
[1735694684131,16.26272556,191.18,191.08,1.5215]
[1735694684337,16.26272556,191.18,191.09,2.6214]
[1735694684729,2.6207,191.16,191.09,2.6214]
[1735694684934,16.26272556,191.18,191.09,2.6214]
[1735694685842,2.6209,191.14,191.09,2.6214]
[1735694686331,2.6209,191.15,191.1,2.6213]
[1735694688339,2.6206,191.16,191.08,1.5215]
[1735694688935,2.6206,191.16,191.12,2.6211]
[1735694692340,11.05168336,191.16,191.12,2.6211]
[1735694692538,2.6206,191.16,191.12,2.6211]
[1735694692735,11.05168336,191.16,191.12,2.6211]
[1735694693139,11.05168336,191.16,191.08,9.95258336]
[1735694693335,11.05168336,191.16,191.11,2.6212]
[1735694693936,8.43108336,191.14,191.08,9.95258336]
[1735694694144,2.6211,191.13,191.09,2.6216]
[1735694694837,11.05198336,191.14,191.1,2.6214]
[1735694696235,2.621,191.13,191.09,2.6215]
[1735694697639,8.43108336,191.14,191.08,9.95258336]
[1735694699547,2.621,191.13,191.09,2.6215]
[1735694701751,2.621,191.13,191.08,9.95258336]
[1735694701752,2.6208,191.15,191.08,9.95258336]
[1735694701951,3.06,191.17,191.1,8.43108336]
[1735694702156,8.43108336,191.18,191.1,8.43108336]
[1735694702746,11.49108336,191.18,191.1,8.43108336]
[1735694703149,8.43108336,191.2,191.14,8.43108336]
[1735694705553,3.06,191.21,191.16,8.43108336]
[1735694705958,3.06,191.21,191.18,2.6203]
[1735694706361,3.06,191.21,191.16,8.43108336]
[1735694706963,5.68,191.21,191.17,2.6204]
[1735694707165,2.62,191.21,191.17,2.6204]
[1735694707565,2.6201,191.2,191.16,11.05158336]
[1735694710466,8.43108336,191.22,191.16,8.43108336]
[1735694710968,73.19788818,191.25,191.2,8.43108336]
[1735694711364,24.45767428,191.25,191.21,2.6199]
[1735694711769,21.83827428,191.25,191.2,8.43108336]
[1735694712259,21.83827428,191.27,191.2,8.43108336]
[1735694713468,2.6193,191.26,191.22,2.6198]
[1735694713858,8.43108336,191.28,191.22,8.43108336]
[1735694714669,2.6191,191.27,191.22,11.05088336]
[1735694714969,3.06,191.3,191.24,8.43108336]
[1735694715166,3.06,191.3,191.25,2.6193]
[1735694715867,2.6189,191.29,191.24,11.05058336]
[1735694716171,3.06,191.32,191.26,8.43108336]
[1735694716868,8.43108336,191.33,191.26,8.43108336]
[1735694716869,11.04938336,191.33,191.29,2.6188]
[1735694717174,3.06,191.34,191.28,8.43108336]
[1735694717870,11.49108336,191.35,191.28,8.43108336]
[1735694718471,2.6182,191.34,191.3,2.6186]
[1735694718773,11.49108336,191.35,191.28,8.43108336]
[1735694719169,2.6183,191.33,191.28,11.04998336]
[1735694720080,2.6183,191.33,191.28,8.43108336]
[1735694721078,8.43108336,191.33,191.27,1.6337]
[1735694721270,3.06,191.34,191.25,3.0935]
[1735694721271,8.43108336,191.31,191.25,3.0935]
[1735694721671,2.6189,191.29,191.25,3.0935]
[1735694723279,8.43108336,191.31,191.25,1.5348]
[1735694723479,2.6191,191.27,191.25,1.5348]
[1735694725182,2.6189,191.29,191.25,1.5348]
[1735694726081,2.6189,191.29,191.25,4.1541]
[1735694726884,8.43108336,191.27,191.21,3.0977]
[1735694727082,8.43108336,191.27,191.21,1.5056]
[1735694727578,11.05018336,191.27,191.23,2.6196]
[1735694729679,2.6194,191.25,191.21,1.5056]
[1735694729878,8.43108336,191.25,191.17,3.053]
[1735694730080,8.43108336,191.25,191.18,8.43108336]
[1735694731082,8.43108336,191.23,191.17,1.5577]
[1735694731285,2.6199,191.21,191.17,4.178]
[1735694733182,11.49108336,191.23,191.17,1.5577]
[1735694733588,3.06,191.23,191.17,1.5577]
[1735694733783,3.06,191.23,191.2,2.6199]
[1735694734187,3.06,191.23,191.18,8.43108336]
[1735694734483,11.05058336,191.25,191.18,9.91148336]
[1735694734886,11.05058336,191.25,191.22,2.6198]
[1735694735479,3.06,191.26,191.2,8.43108336]
[1735694735888,3.06,191.26,191.22,8.43108336]
[1735694736685,3.06,191.26,191.2,8.43108336]
[1735694736885,3.06,191.26,191.19,8.43108336]
[1735694737786,5.6793,191.26,191.21,2.6199]
[1735694737978,5.6793,191.26,191.19,8.43108336]
[1735694738184,5.6793,191.26,191.22,2.6198]
[1735694739087,3.06,191.26,191.21,8.43108336]
[1735694739284,3.06,191.26,191.24,2.6194]
[1735694741390,3.06,191.31,191.25,8.43108336]
[1735694741790,11.49108336,191.32,191.25,8.43108336]
[1735694742495,2.6184,191.32,191.27,2.6191]
[1735694742792,14.10948336,191.32,191.27,2.6191]
[1735694744691,2.6186,191.31,191.27,2.6191]
[1735694745787,11.04978336,191.3,191.26,2.6192]
[1735694746795,8.43108336,191.28,191.21,8.43108336]
[1735694748393,11.05018336,191.28,191.24,2.6195]
[1735694750295,11.05018336,191.28,191.25,2.6194]
[1735694751288,8.43108336,191.28,191.25,2.6194]
[1735694753004,8.43108336,191.28,191.23,8.43108336]
[1735694753302,30.26935764,191.3,191.26,2.6191]
[1735694753902,30.26935764,191.3,191.23,8.43108336]
[1735694754103,8.43108336,191.3,191.27,2.6191]
[1735694756402,11.04978336,191.3,191.27,2.6191]
[1735694756902,8.43108336,191.3,191.27,2.6191]
[1735694760409,8.43108336,191.3,191.29,2.6188]
[1735694761006,42.48827439,191.3,191.29,2.6188]
[1735694761208,34.05719103,191.3,191.29,2.6188]
[1735694761512,43.55722771,191.3,191.29,2.6188]
[1735694761703,34.05719103,191.3,191.29,2.6188]
[1735694762401,21.83827428,191.31,191.29,2.6188]
[1735694763407,35.94775764,191.32,191.29,2.6188]
[1735694765310,35.94775764,191.32,191.25,8.43108336]
[1735694765508,35.94775764,191.32,191.28,2.6189]
[1735694765906,9.5182343,191.31,191.28,2.6189]
[1735694766307,2.6188,191.3,191.26,2.6192]
[1735694766614,8.43108336,191.3,191.23,8.43108336]
[1735694767105,8.43108336,191.3,191.26,2.6192]
[1735694767812,8.43108336,191.28,191.18,3.1104]
[1735694768002,8.43108336,191.24,191.18,3.1104]
[1735694768207,8.43108336,191.22,191.18,1.4804]
[1735694768907,8.43108336,191.22,191.18,4.1007]
[1735694770009,11.05088336,191.22,191.18,4.1007]
[1735694771012,11.49108336,191.22,191.18,4.1007]
[1735694772709,9.51869981,191.24,191.2,8.43108336]
[1735694773308,24.89827428,191.25,191.23,2.6195]
[1735694774215,3.06,191.25,191.22,2.6198]
[1735694774409,11.49108336,191.25,191.22,2.6198]
[1735694775114,11.49108336,191.25,191.21,2.6199]
[1735694776406,11.49108336,191.25,191.18,11.50228336]
[1735694776616,8.43108336,191.23,191.18,1.4804]
[1735694777016,11.05088336,191.23,191.18,4.1006]
[1735694777316,8.43108336,191.23,191.18,1.4804]
[1735694777512,8.43108336,191.21,191.18,1.4804]
[1735694777907,11.05108336,191.21,191.18,1.4804]
[1735694779214,20.99901228,191.25,191.18,1.4804]
[1735694779518,20.99901228,191.25,191.19,8.43108336]
[1735694779719,11.49108336,191.25,191.19,8.43108336]
[1735694780516,14.11048336,191.25,191.21,2.6198]
[1735694784712,2.6196,191.24,191.18,9.91148336]
[1735694784914,2.6196,191.24,191.2,2.6201]
[1735694786116,2.6196,191.24,191.21,2.6199]
[1735694786417,2.6198,191.23,191.18,9.91148336]
[1735694786620,8.43108336,191.23,191.19,2.6202]
[1735694787015,2.62,191.21,191.18,1.4804]
[1735694787722,2.62,191.21,191.18,4.1006]
[1735694788117,2.6199,191.22,191.19,2.6202]
[1735694790023,11.49108336,191.25,191.18,1.4804]
[1735694790222,2.6196,191.24,191.2,2.62]
[1735694791022,2.6196,191.24,191.21,2.6199]
[1735694793026,14.11058336,191.25,191.21,2.6199]
[1735694798324,5.6795,191.25,191.21,2.6199]
[1735694801032,3.06,191.25,191.21,2.6199]
[1735694801333,2.6196,191.24,191.21,2.6199]
[1735694803135,24.45787428,191.24,191.21,2.6199]
[1735694806440,2.6196,191.24,191.21,2.6199]
[1735694807539,12.14375651,191.24,191.21,2.6199]
[1735694813443,31.36243079,191.24,191.19,8.43108336]
[1735694813643,31.36243079,191.24,191.22,2.6197]
[1735694813845,21.83827428,191.24,191.22,2.6197]
[1735694814545,3.06,191.25,191.22,2.6197]
[1735694816345,3.06,191.25,191.2,2.6201]
[1735694816540,12.61119244,191.25,191.2,2.6201]
[1735694817250,34.44946672,191.25,191.2,2.6201]
[1735694817550,2.6197,191.23,191.2,2.6201]
[1735694818946,21.83827428,191.24,191.18,3.0402]
[1735694819148,2.62,191.21,191.18,2.6203]
[1735694820359,2.62,191.21,191.17,12.60928336]
[1735694820651,17.98393272,191.24,191.17,1.5577]
[1735694820849,2.6203,191.19,191.15,11.05178336]
[1735694822548,3.04,191.2,191.13,1.4816]
[1735694822549,11.47108336,191.2,191.13,1.4816]
[1735694822851,11.47108336,191.2,191.13,9.91268336]
[1735694823251,2.6206,191.17,191.13,12.53368336]
[1735694824855,21.02393272,191.2,191.14,2.6209]
[1735694825154,2.6204,191.18,191.14,2.6209]
[1735694826955,2.6204,191.18,191.14,11.05198336]
[1735694828057,9.55284936,191.21,191.16,8.43108336]
[1735694828261,9.55284936,191.21,191.19,8.43108336]
[1735694829360,5.6598,191.23,191.19,11.05128336]
[1735694829557,3.04,191.23,191.19,2.6202]
[1735694830154,3.04,191.23,191.17,8.43108336]
[1735694830462,2.6198,191.22,191.18,2.6203]
[1735694833759,5.6598,191.22,191.18,2.6203]
[1735694844771,2.6198,191.22,191.19,2.6202]
[1735694845268,17.96391034,191.24,191.17,1.5065]
[1735694845464,9.53282698,191.24,191.18,8.43108336]
[1735694845869,21.83827428,191.25,191.2,8.43108336]
[1735694846967,21.83827428,191.25,191.22,2.6197]
[1735694847270,2.6193,191.26,191.22,2.6197]
[1735694850574,11.47108336,191.27,191.19,8.43108336]
[1735694850768,11.47108336,191.27,191.2,2.62]
[1735694850769,2.6196,191.24,191.2,2.62]
[1735694851374,2.6197,191.23,191.19,2.6202]
[1735694851966,2.6197,191.23,191.2,2.62]
[1735694852165,2.6196,191.24,191.2,2.62]
[1735694853074,2.6196,191.24,191.18,9.97778336]
[1735694853275,8.43108336,191.25,191.21,2.6199]
[1735694853575,11.05048336,191.25,191.21,2.6199]
[1735694855883,8.43108336,191.25,191.21,2.6199]
[1735694856083,2.6196,191.24,191.2,2.6201]
[1735694856486,2.6197,191.23,191.2,2.6201]
[1735694857581,2.6196,191.24,191.2,2.6201]
[1735694858682,8.43108336,191.25,191.18,9.97778336]
[1735694858882,2.6194,191.26,191.2,8.43108336]
[1735694859588,2.6194,191.26,191.22,2.6198]
[1735694860082,2.6194,191.25,191.22,2.6198]
[1735694860889,2.6194,191.25,191.21,2.6199]
[1735694863091,17.97797179,191.27,191.19,8.43108336]
[1735694863390,2.6193,191.26,191.22,2.6197]
[1735694865783,9.54688843,191.28,191.22,8.43108336]
[1735694865983,9.54688843,191.28,191.24,8.43108336]
[1735694866491,24.45717428,191.29,191.26,2.6192]
[1735694866993,2.6189,191.29,191.26,2.6192]
[1735694867586,2.6189,191.29,191.25,2.6194]
[1735694868493,63.85316793,191.31,191.25,2.6194]
[1735694868787,2.619,191.28,191.25,2.6194]
[1735694869096,55.42208457,191.31,191.26,8.43108336]
[1735694869389,21.83827428,191.34,191.28,8.43108336]
[1735694870297,8.43108336,191.35,191.28,8.43108336]
[1735694870496,8.43108336,191.35,191.29,2.6188]
[1735694870497,2.6183,191.34,191.29,2.6188]
[1735694871488,2.6183,191.33,191.29,2.6188]
[1735694873900,2.6183,191.34,191.3,8.43108336]
[1735694875900,2.6183,191.33,191.29,2.6188]
[1735694876201,2.6183,191.33,191.29,11.04988336]
[1735694876708,21.83827428,191.36,191.29,11.04988336]
[1735694876900,2.6182,191.34,191.29,11.04988336]
[1735694878000,2.6183,191.33,191.29,11.04988336]
[1735694879504,2.6182,191.35,191.3,2.6187]
[1735694879804,8.43108336,191.36,191.3,2.6187]
[1735694880205,2.6187,191.31,191.27,1.4846]
[1735694880406,8.43108336,191.34,191.28,8.43108336]
[1735694881302,2.6187,191.31,191.28,8.43108336]
[1735694882010,8.43108336,191.34,191.28,11.04998336]
[1735694882508,8.43108336,191.34,191.28,8.43108336]
[1735694883108,2.6187,191.31,191.28,8.43108336]
[1735694883904,2.6187,191.31,191.28,11.05008336]
[1735694885009,2.6191,191.28,191.24,2.6195]
[1735694885213,8.43108336,191.28,191.22,8.43108336]
[1735694885508,2.6192,191.27,191.22,11.05078336]
[1735694885697,8.43108336,191.28,191.22,11.05078336]
[1735694885897,8.43108336,191.28,191.22,8.43108336]
[1735694886098,2.6192,191.27,191.23,2.6196]
[1735694887203,2.6192,191.27,191.24,2.6195]
[1735694887407,8.43108336,191.28,191.22,8.43108336]
[1735694887611,8.43108336,191.3,191.22,8.43108336]
[1735694887806,8.43108336,191.3,191.24,2.6194]
[1735694888108,2.6191,191.28,191.24,2.6194]
[1735694888905,12.54802823,191.31,191.24,8.43108336]
[1735694889103,20.97911159,191.31,191.26,2.6192]
[1735694889612,11.47108336,191.31,191.26,2.6192]
[1735694890511,2.6189,191.29,191.26,2.6192]
[1735694892412,2.6188,191.3,191.26,2.6192]
[1735694894908,11.47108336,191.31,191.26,2.6192]
[1735694895209,2.6189,191.29,191.26,2.6192]
[1735694904715,24.45717428,191.29,191.26,2.6192]
[1735694907821,2.6189,191.29,191.26,2.6192]
[1735694908317,2.6189,191.29,191.25,2.6194]
[1735694908713,24.45717428,191.29,191.25,2.6194]
[1735694910717,2.6189,191.29,191.25,2.6194]
[1735694918427,24.45717428,191.29,191.25,2.6194]
[1735694919325,34.07990847,191.28,191.25,2.6194]
[1735694923134,34.07990847,191.28,191.24,8.43108336]
[1735694923432,34.07990847,191.28,191.2,3.04]
[1735694923433,2.6193,191.26,191.21,8.43108336]
[1735694924327,2.6194,191.25,191.19,1.5458]
[1735694924631,21.83827428,191.26,191.2,8.43108336]
[1735694924632,24.87827428,191.26,191.2,8.43108336]
[1735694925026,2.6196,191.24,191.2,11.05118336]
[1735694929036,2.6196,191.24,191.21,2.62]
[1735694941243,2.6199,191.22,191.19,11.05128336]
[1735694942846,2.6197,191.23,191.18,4.0942]
[1735694943041,8.43108336,191.25,191.18,4.0942]
[1735694943941,2.6199,191.22,191.18,1.4739]
[1735694944241,2.6199,191.22,191.19,2.6202]
[1735694946040,21.83827428,191.27,191.2,8.43108336]
[1735694946242,21.83827428,191.27,191.23,8.43108336]
[1735694947153,5.6591,191.28,191.24,2.6194]
[1735694947346,21.83827428,191.31,191.25,8.43108336]
[1735694947545,24.87827428,191.31,191.27,8.43108336]
[1735694947752,21.83827428,191.31,191.27,11.05018336]
[1735694948452,21.83827428,191.31,191.27,8.43108336]
[1735694948756,24.45687428,191.31,191.27,8.43108336]
[1735694949352,2.6186,191.31,191.27,8.43108336]
[1735694949851,3.04,191.33,191.27,8.43108336]
[1735694950051,2.6187,191.3,191.25,2.6194]
[1735694950351,8.43108336,191.32,191.26,8.43108336]
[1735694951258,2.6189,191.3,191.26,8.43108336]
[1735694951854,8.43108336,191.32,191.26,8.43108336]
[1735694952060,2.6189,191.29,191.26,8.43108336]
[1735694952358,8.43108336,191.3,191.19,1.4981]
[1735694952560,8.43108336,191.3,191.23,8.43108336]
[1735694953058,2.6193,191.26,191.23,8.43108336]
[1735694953655,30.91019828,191.32,191.21,2.6199]
[1735694953656,2.6194,191.25,191.21,2.6199]
[1735694955768,2.6193,191.26,191.23,2.6197]
[1735694956061,3.04,191.28,191.23,2.6197]
[1735694956258,2.6192,191.27,191.23,2.6197]
[1735694958957,2.6192,191.27,191.24,8.43108336]
[1735694959558,2.6192,191.27,191.23,2.6197]
[1735694959763,2.6192,191.27,191.23,11.05078336]
[1735694968170,2.6193,191.26,191.23,11.05078336]
[1735694971467,2.6193,191.26,191.23,8.43108336]
[1735694971669,2.6193,191.26,191.22,11.05088336]
[1735694971867,2.6196,191.24,191.22,8.43108336]
[1735694979777,2.6196,191.24,191.22,11.05088336]
[1735694979970,2.6194,191.25,191.22,11.05088336]
[1735694980373,2.6194,191.25,191.22,2.6198]
[1735694987582,2.6194,191.25,191.22,11.05088336]
[1735694990479,2.6192,191.27,191.24,2.6194]
[1735694990685,21.83827428,191.28,191.25,8.43108336]
[1735694990979,21.83827428,191.29,191.25,8.43108336]
[1735694991884,24.45717428,191.29,191.26,2.6193]
[1735694992084,2.6189,191.29,191.26,2.6193]
[1735694992286,2.6189,191.29,191.25,8.43108336]
[1735694992481,2.6191,191.28,191.25,11.05048336]
[1735694998587,11.47108336,191.3,191.23,8.43108336]
[1735694998793,2.6193,191.27,191.23,11.05068336]
[1735695000092,2.6193,191.26,191.23,11.05068336]
[1735695000399,8.43108336,191.26,191.21,8.43108336]
[1735695000899,8.43108336,191.26,191.19,8.43108336]
[1735695001091,8.43108336,191.24,191.18,1.4739]
[1735695001291,2.6204,191.18,191.14,5.7552]
[1735695001502,8.43108336,191.2,191.14,14.18628336]
[1735695001802,11.47108336,191.2,191.14,14.18628336]
[1735695002103,2.6203,191.19,191.14,14.18628336]
[1735695003105,2.6204,191.18,191.14,14.18628336]
[1735695004205,2.6204,191.18,191.14,5.7552]
[1735695004502,2.6204,191.18,191.14,14.18628336]
[1735695005595,11.47108336,191.2,191.14,10.03548336]
[1735695005903,8.43108336,191.18,191.12,3.88593799]
[1735695006405,2.6209,191.15,191.12,3.88593799]
[1735695010702,8.43108336,191.16,191.12,2.37053799]
[1735695011006,3.04,191.15,191.07,1.4824]
[1735695011207,3.04,191.15,191.09,8.43108336]
[1735695011602,2.6211,191.13,191.09,8.43108336]
[1735695012406,8.43108336,191.14,191.07,12.53528336]
[1735695012803,8.43108336,191.12,191.07,9.91348336]
[1735695013003,8.43108336,191.12,191.05,8.43108336]
[1735695013601,2.6216,191.09,191.05,8.43108336]
[1735695014204,2.6218,191.08,191.05,8.43108336]
[1735695014406,2.6218,191.08,191.04,4.94078348]
[1735695016510,3.04,191.15,191.07,8.43108336]
[1735695016801,21.83827428,191.19,191.11,8.43108336]
[1735695017005,2.6205,191.17,191.13,8.43108336]
[1735695017207,80.07367238,191.2,191.15,8.43108336]
[1735695017402,3.04,191.19,191.15,8.43108336]
[1735695017603,3.04,191.19,191.16,2.6207]
[1735695017797,3.04,191.19,191.15,8.43108336]
[1735695018909,5.6605,191.19,191.15,8.43108336]
[1735695019507,3.04,191.19,191.15,8.43108336]
[1735695019808,2.6205,191.18,191.15,8.43108336]
[1735695021707,11.47108336,191.19,191.13,8.43108336]
[1735695022006,11.47108336,191.19,191.11,8.43108336]
[1735695022802,2.621,191.15,191.11,8.43108336]
[1735695023008,8.43108336,191.17,191.11,8.43108336]
[1735695023512,2.6209,191.16,191.11,8.43108336]
[1735695023710,8.43108336,191.17,191.11,8.43108336]
[1735695024413,2.6209,191.16,191.11,8.43108336]
[1735695024607,8.43108336,191.17,191.11,8.43108336]
[1735695025108,2.621,191.15,191.11,8.43108336]
[1735695029009,2.6202,191.2,191.15,2.6208]
[1735695029311,2.6202,191.2,191.15,8.43108336]
[1735695030413,2.6202,191.2,191.16,2.6208]
[1735695030617,2.62,191.22,191.17,8.43108336]
[1735695030917,11.47108336,191.23,191.17,8.43108336]
[1735695031310,2.62,191.22,191.19,2.6203]
[1735695031616,8.43108336,191.25,191.19,2.6203]
[1735695031814,8.43108336,191.25,191.2,2.6202]
[1735695031815,2.6198,191.24,191.2,2.6202]
[1735695032214,21.83827428,191.29,191.22,2.6198]
[1735695032215,2.6193,191.27,191.22,2.6198]
[1735695032615,8.43108336,191.26,191.19,10.01918336]
[1735695032824,2.6196,191.25,191.21,2.6201]
[1735695033117,11.47108336,191.28,191.21,8.43108336]